bitfinex/quotes_ETHUSD_20251118
["timestamp","ask_amount","ask_price","bid_price","bid_amount"]
[1763442781397,0.1935,3019.8,3019.2,0.001]
[1763442781579,0.29,3019.7,3019.2,0.1781]
[1763442781909,0.29,3019.7,3019.3,1.15950479]
[1763442782297,0.29,3019.7,3019.6,0.1771]
[1763442782519,0.002,3020.7,3019.7,0.405504]
[1763442782808,0.1946,3022.3,3020.8,6.47477981]
[1763442782993,0.1946,3022.3,3021.4,6.47477981]
[1763442783196,0.1946,3022.3,3021.5,2.16523686]
[1763442783382,0.1946,3022.3,3021.6,4.87854109]
[1763442783581,0.29,3022.2,3021.7,1.16355888]
[1763442783984,0.29,3022.2,3021.8,0.1771]
[1763442784215,0.29,3022.2,3021.8,1.34065888]
[1763442784503,0.29,3022.2,3021.8,2.17411901]
[1763442784708,0.29,3022.2,3021.6,1.16355888]
[1763442784709,0.1935,3021.9,3021.6,1.16355888]
[1763442784912,0.6611,3021.9,3021.4,1.16355888]
[1763442785121,0.1935,3021.9,3021.4,0.30859972]
[1763442785309,0.1935,3022.8,3021.4,1.4721586]
[1763442785507,1.196,3021.8,3021.5,7.78278772]
[1763442785825,0.4629,3022.6,3021.7,1.34065888]
[1763442786025,0.29,3022.5,3021.7,1.34065888]
[1763442786318,0.29,3022.5,3021.7,0.63956116]
[1763442786487,0.4805,3022.4,3021.5,1.16355888]
[1763442787387,0.4805,3022.4,3021.5,4.47315019]
[1763442787601,0.4805,3022.4,3021.5,7.78276461]
[1763442787804,0.4805,3022.4,3021.5,4.4731552]
[1763442788025,0.4805,3022.4,3021.4,0.66618548]
[1763442788378,0.4805,3022.4,3021.2,1.34065888]
[1763442788379,0.4805,3022.4,3021.3,3.30983351]
[1763442788616,0.05839597,3022.4,3021.4,0.46504924]
[1763442788934,0.29,3022.5,3021.4,0.46504924]
[1763442789639,0.29,3022.5,3021.2,0.65611172]
[1763442789640,0.661,3021.5,3021.2,0.65611172]
[1763442789806,0.48,3021.3,3020.6,3.31057624]
[1763442790007,0.29,3021.4,3020.6,4.47413512]
[1763442790208,0.29,3021.4,3020.7,0.44741351]
[1763442790648,0.29,3021.4,3020.7,1.61097239]
[1763442791199,0.29,3021.4,3020.7,2.08097239]
[1763442791707,0.29,3021.4,3020.8,3.31038135]
[1763442791911,0.181,3021.9,3021.3,0.1771]
[1763442792154,0.29,3021.8,3021.0,1.16355888]
[1763442792295,0.29,3021.8,3021.1,0.20705515]
[1763442792503,0.7705,3021.8,3020.8,1.16355888]
[1763442793027,0.4805,3021.7,3020.8,1.16355888]
[1763442793639,0.4805,3021.7,3020.6,0.65884905]
[1763442793640,0.661,3020.9,3020.6,0.65884905]
[1763442793846,0.5291,3020.8,3020.1,4.61536106]
[1763442793999,0.5291,3020.8,3020.2,1.49466467]
[1763442794205,0.5291,3020.8,3020.2,1.16355888]
[1763442795149,0.181,3021.9,3020.3,0.405504]
[1763442795312,0.181,3021.3,3020.3,1.56906288]
[1763442795836,0.181,3021.3,3020.4,6.6216395]
[1763442796039,0.181,3021.3,3020.5,0.8862832]
[1763442796509,0.181,3021.3,3020.5,2.04984208]
[1763442797604,1.486,3021.8,3020.6,1.63355888]
[1763442797605,0.29,3021.8,3020.6,1.63355888]
[1763442797827,0.183,3021.9,3020.7,3.31049094]
[1763442797828,0.7705,3021.7,3020.7,3.31049094]
[1763442798036,0.7705,3021.7,3020.5,1.16355888]
[1763442798037,0.661,3020.8,3020.5,1.16355888]
[1763442798200,0.5291,3020.7,3020.4,0.001]
[1763442799603,0.4665,3020.5,3020.4,0.001]
[1763442800407,0.4914,3020.6,3020.4,0.001]
[1763442800622,0.29,3020.7,3020.4,0.001]
[1763442801209,0.4927,3020.6,3020.4,0.001]
[1763442801848,0.29,3020.7,3020.4,0.001]
[1763442802053,4.39917103,3021.9,3020.6,0.4938]
[1763442802054,0.183,3021.9,3020.6,0.4938]
[1763442802256,0.183,3021.9,3020.9,1.16355888]
[1763442802554,0.52050597,3021.6,3021.0,1.16355888]
[1763442802848,0.52050597,3021.6,3021.1,0.1771]
[1763442803017,0.52050597,3021.6,3021.3,1.16355888]
[1763442803418,0.29,3021.5,3021.3,1.16355888]
[1763442803941,0.29,3021.5,3021.4,3.30972396]
[1763442804145,0.52050597,3021.6,3021.4,4.0880362]
[1763442804869,0.52050597,3021.6,3021.5,0.9747]
[1763442805275,2.91250597,3021.6,3021.5,0.4938]
[1763442805473,0.002,3021.9,3021.5,2.13825888]
[1763442805681,0.29,3021.6,3021.4,9.14309848]
[1763442805832,0.29,3021.6,3021.5,1.24529191]
[1763442806037,0.002,3021.9,3021.5,1.73909191]
[1763442806263,0.002,3021.9,3021.7,4.4702189]
[1763442806770,0.002,3022.3,3021.8,0.4938]
[1763442806950,0.002,3022.3,3021.9,0.82734143]
[1763442807270,0.29,3022.2,3021.9,1.98816496]
[1763442807474,0.29,3022.2,3022.0,1.16082353]
[1763442807771,0.29,3022.2,3022.1,0.1407]
[1763442807969,0.29,3022.2,3022.1,0.2609765]
[1763442808145,0.29,3022.2,3022.1,1.16082353]
[1763442808336,0.29,3022.2,3022.1,0.65112287]
[1763442808542,0.29,3022.2,3022.1,0.6345]
[1763442808739,0.002,3022.3,3022.1,2.37983832]
[1763442808978,0.1944,3023.6,3022.2,2.11967647]
[1763442809275,0.1944,3023.6,3022.8,1.16189962]
[1763442809276,0.29,3023.1,3022.8,1.16189962]
[1763442809440,0.29,3023.1,3022.9,1.16189962]
[1763442810187,0.29,3023.1,3022.8,1.16189962]
[1763442810554,0.29,3023.1,3022.8,1.78319484]
[1763442810874,0.29,3023.1,3022.9,1.16189962]
[1763442811060,0.1944,3023.6,3022.9,1.74284944]
[1763442811260,0.1944,3023.6,3023.0,1.16143238]
[1763442811675,0.1944,3025.0,3023.2,0.405504]
[1763442811848,0.4927,3024.8,3023.8,1.16048236]
[1763442812476,0.52006793,3024.6,3023.9,1.16048236]
[1763442812680,0.52006793,3024.6,3024.0,1.16048236]
[1763442812987,0.4927,3025.5,3024.5,0.4938]
[1763442813168,0.29,3025.4,3024.3,1.16048236]
[1763442813680,0.29,3025.4,3024.4,1.64138236]
[1763442814070,0.1944,3026.3,3025.3,0.1589]
[1763442814383,0.1944,3029.0,3025.4,4.46581608]
[1763442814384,0.29,3026.2,3025.4,4.46581608]
[1763442814545,0.29,3026.2,3025.3,3.46433627]
[1763442814746,0.7827,3026.2,3025.3,0.1589]
[1763442815080,0.4427,3026.4,3025.3,3.46431601]
[1763442815245,2.39,3026.3,3025.3,0.6398]
[1763442815454,2.39,3026.3,3025.3,3.94522675]
[1763442815649,2.39,3026.3,3025.3,7.25068406]
[1763442815981,3.49686965,3028.1,3025.4,2.10516105]
[1763442815982,3.3026308,3027.9,3025.4,2.10516105]
[1763442816145,3.3026308,3027.9,3025.5,0.405504]
[1763442816146,0.04128273,3027.9,3025.5,0.405504]
[1763442816345,3.30316585,3027.4,3025.4,4.93740663]
[1763442816668,3.49686343,3028.1,3025.4,2.10516105]
[1763442816669,0.271,3026.9,3025.4,2.10516105]
[1763442816877,0.271,3026.9,3025.3,0.1589]
[1763442817251,3.30278678,3027.8,3025.3,0.1589]
[1763442817252,0.7493,3026.8,3025.3,0.1589]
[1763442817560,0.1923,3025.4,3024.8,0.1896]
[1763442817769,0.289,3025.3,3024.3,0.1896]
[1763442817969,0.289,3025.3,3024.4,0.39693404]
[1763442818489,0.4603,3025.2,3023.6,1.63358236]
[1763442818668,0.4603,3025.2,3023.9,3.30688321]
[1763442818875,0.4603,3025.2,3023.9,0.90699264]
[1763442819667,0.4603,3025.2,3023.8,3.30709657]
[1763442819875,0.4603,3025.2,3023.9,1.3089074]
[1763442820499,0.4603,3025.2,3024.0,3.3068783]
[1763442820666,0.4603,3025.2,3024.0,3.7799783]
[1763442820865,0.4603,3025.2,3024.1,0.1896]
[1763442822000,0.4603,3025.2,3024.0,0.90699264]
[1763442822298,0.4603,3025.2,3024.1,0.66645898]
[1763442822662,0.4603,3025.2,3024.1,4.16281034]
[1763442823165,0.1923,3025.4,3024.2,6.94787981]
[1763442823379,0.289,3025.3,3024.3,1.44174591]
[1763442823589,0.289,3025.2,3024.3,1.91484591]
[1763442824361,0.1923,3024.4,3023.9,1.97752186]
[1763442824566,0.289,3024.3,3023.9,0.66861446]
[1763442824787,0.289,3024.3,3023.8,3.30702804]
[1763442825297,2.39,3024.2,3023.8,3.30702804]
[1763442825495,0.6526,3026.0,3024.3,0.405504]
[1763442825699,0.7493,3025.5,3024.4,6.47477981]
[1763442825887,0.7493,3025.5,3024.5,0.64747798]
[1763442826692,0.7493,3025.5,3024.5,3.95378692]
[1763442826881,0.7493,3025.5,3024.5,0.64747798]
[1763442827483,0.7493,3025.5,3024.5,3.95379866]
[1763442828482,0.7493,3025.5,3024.5,0.64747798]
[1763442828801,0.7493,3025.5,3023.9,0.90699264]
[1763442828802,0.30504453,3025.4,3023.8,0.66062378]
[1763442829005,0.1906,3023.9,3023.1,0.1407]
[1763442829177,0.289,3023.8,3023.1,0.1407]
[1763442829507,0.289,3023.8,3023.1,1.04769264]
[1763442829713,0.289,3023.8,3023.1,3.44854647]
[1763442830011,0.289,3023.8,3023.2,0.34485465]
[1763442830534,0.289,3023.8,3023.1,0.1407]
[1763442831107,0.289,3023.8,3023.1,0.79723761]
[1763442831306,0.289,3023.8,3023.1,4.10503858]
[1763442831819,0.289,3023.8,3023.1,0.79723761]
[1763442832125,0.289,3023.8,3023.1,0.65753761]
[1763442832328,0.289,3023.8,3023.1,0.001]
[1763442832830,0.289,3023.8,3023.2,0.33089632]
[1763442833016,0.289,3023.8,3023.1,0.001]
[1763442833737,0.50164008,3023.7,3023.1,0.001]
[1763442833920,0.4603,3024.4,3023.1,0.1906]
[1763442834121,0.1923,3023.9,3023.1,0.001]
[1763442834428,0.1923,3023.9,3023.1,0.1906]
[1763442835131,0.1923,3023.9,3023.1,0.001]
[1763442835132,0.4603,3023.8,3023.1,0.001]
[1763442835334,2.39,3023.7,3023.1,0.001]
[1763442835732,0.4603,3023.6,3023.1,0.001]
[1763442835934,0.289,3023.5,3023.1,0.001]
[1763442836434,0.4603,3023.5,3023.1,0.001]
[1763442836595,0.289,3023.4,3023.1,0.001]
[1763442836803,0.4603,3023.5,3023.1,0.1906]
[1763442836804,0.52024175,3023.5,3023.1,0.1906]
[1763442837046,0.289,3023.3,3023.2,0.41754589]
[1763442837257,0.289,3023.3,3023.1,0.1906]
[1763442837542,0.52024175,3023.5,3023.2,7.40297981]
[1763442837749,0.289,3023.4,3023.2,2.08868236]
[1763442837900,0.94830949,3025.4,3023.4,0.4551]
[1763442838100,0.4603,3024.9,3023.4,0.4551]
[1763442838315,0.4603,3024.9,3023.5,0.20886824]
[1763442838735,0.4603,3024.9,3023.5,1.3693506]
[1763442838935,0.4603,3024.9,3023.6,2.540575]
[1763442839133,0.289,3024.8,3023.8,1.16048236]
[1763442839503,0.4603,3024.8,3023.8,1.16048236]
[1763442839708,0.289,3024.7,3023.9,0.4731]
[1763442840322,0.1923,3025.9,3024.6,7.11947981]
[1763442840606,0.289,3025.8,3025.1,1.16048236]
[1763442840811,0.7493,3025.8,3025.0,1.16048236]
[1763442841120,0.51988192,3025.7,3024.6,1.74072354]
[1763442841318,0.97357035,3025.7,3024.3,4.46701497]
[1763442841546,0.97357035,3025.7,3024.4,1.71684312]
[1763442841820,0.4603,3025.6,3024.4,1.16048236]
[1763442842024,0.4603,3025.6,3024.2,1.16048236]
[1763442842025,0.04131548,3025.5,3024.2,1.16048236]
[1763442842233,0.04131548,3025.5,3024.1,4.46724716]
[1763442842447,0.4603,3025.4,3024.1,4.66027951]
[1763442842623,0.4603,3025.4,3024.1,1.35351471]
[1763442843231,0.4603,3025.4,3024.2,1.16048236]
[1763442843433,0.4603,3025.4,3024.1,1.35351471]
[1763442843750,0.4603,3025.4,3024.2,0.48499635]
[1763442844123,0.4603,3025.4,3024.2,1.64547871]
[1763442844334,0.4603,3025.4,3024.3,1.16048236]
[1763442844541,0.4603,3025.4,3024.2,1.13983848]
[1763442844737,0.04131821,3025.3,3024.2,0.48499635]
[1763442844961,0.51999572,3025.2,3024.2,0.48499635]
[1763442845157,0.289,3025.1,3024.3,0.18385111]
[1763442845362,1.195,3025.0,3024.3,0.18385111]
[1763442845658,0.1923,3024.9,3024.3,0.18385111]
[1763442845862,0.1923,3024.9,3024.2,1.83081823]
[1763442845863,0.6651,3024.9,3024.2,1.83081823]
[1763442846021,0.6651,3024.9,3024.2,0.67033587]
[1763442846228,0.6651,3024.9,3024.2,1.16048236]
[1763442846769,0.6651,3024.9,3024.0,1.80914341]
[1763442846770,0.51412504,3024.8,3024.0,1.80914341]
[1763442846927,0.4728,3024.8,3024.0,0.64866105]
[1763442847121,0.4728,3024.8,3023.9,1.16048236]
[1763442848747,0.1923,3024.9,3024.0,1.65918236]
[1763442848953,0.7618,3024.8,3024.2,1.16048236]
[1763442849187,0.7618,3024.8,3024.3,1.16048236]
[1763442849710,0.289,3024.8,3024.3,1.16048236]
[1763442849870,1.09929264,3026.0,3024.3,1.16048236]
[1763442849871,0.002,3026.4,3025.1,0.4949]
[1763442850070,0.002,3026.4,3025.8,1.16048236]
[1763442850384,0.002,3026.4,3026.2,0.87208847]
[1763442850566,0.002,3026.4,3026.3,0.87208847]
[1763442850901,0.002,3026.4,3026.2,1.31858236]
[1763442851199,0.291,3026.4,3026.2,1.31858236]
[1763442851665,0.291,3026.4,3026.2,1.16048236]
[1763442852084,0.291,3026.4,3026.3,0.86968045]
[1763442853110,1.2222,3026.4,3026.3,0.86968045]
[1763442853278,1.2222,3026.4,3025.7,0.86968045]
[1763442853483,0.4728,3026.3,3025.7,0.86968045]
[1763442853720,0.1999,3025.8,3025.7,0.86968045]
[1763442854035,0.1999,3025.8,3025.6,0.86968045]
[1763442854183,0.289,3025.7,3025.6,0.86968045]
[1763442854521,0.289,3025.7,3025.2,0.86968045]
[1763442854522,1.2202,3025.7,3025.2,0.86968045]
[1763442854725,0.7618,3025.7,3025.2,0.86968045]
[1763442855016,0.4728,3025.6,3025.2,0.86968045]
[1763442855220,1.195,3025.5,3025.2,0.86968045]
[1763442855383,2.39,3025.5,3025.2,0.86968045]
[1763442856322,2.8628,3025.5,3025.1,0.86968045]
[1763442856480,0.002,3026.4,3025.2,0.86968045]
[1763442856821,0.7618,3026.3,3025.3,0.86968045]
[1763442856990,0.7618,3026.3,3025.4,0.86968045]
[1763442857183,0.4728,3026.2,3025.4,0.86968045]
[1763442858383,0.4728,3026.2,3025.3,0.86968045]
[1763442859381,0.002,3026.4,3025.3,7.32170066]
[1763442859628,0.289,3026.3,3025.7,0.86968045]
[1763442859829,0.289,3026.3,3025.6,0.86968045]
[1763442859988,0.7564,3026.3,3025.6,0.86968045]
[1763442860938,0.002,3026.4,3025.8,0.86968045]
[1763442861235,0.289,3026.3,3025.9,0.86968045]
[1763442862093,0.289,3026.3,3025.8,1.97968937]
[1763442862299,0.7564,3026.3,3025.8,0.86968045]
[1763442862607,0.4674,3026.2,3025.9,0.86968045]
[1763442863234,0.289,3026.3,3025.9,0.86968045]
[1763442864527,0.289,3026.3,3025.9,1.40319793]
[1763442864717,0.289,3026.3,3026.0,0.86968045]
[1763442865318,2.388,3026.2,3026.0,0.86968045]
[1763442866003,2.388,3026.2,3026.1,0.86968045]
[1763442866209,2.388,3026.2,3026.0,1.16048236]
[1763442867128,2.388,3026.2,3026.1,1.16048236]
[1763442867798,0.289,3026.3,3026.1,1.16048236]
[1763442868427,0.289,3026.3,3026.2,1.16048236]
[1763442868824,0.002,3026.4,3026.2,1.27462059]
[1763442869036,0.002,3026.4,3026.3,2.72522354]
[1763442869236,0.291,3026.4,3026.3,6.0295886]
[1763442870130,0.1962,3027.3,3026.3,9.33395366]
[1763442870434,0.1962,3027.5,3027.2,0.86701041]
[1763442870639,0.289,3027.4,3027.0,0.86701041]
[1763442871049,0.4923,3027.1,3027.0,0.86701041]
[1763442871425,0.4923,3027.1,3026.8,0.86701041]
[1763442871426,0.9597,3027.1,3026.8,0.86701041]
[1763442871721,0.4536,3026.9,3026.5,0.86701041]
[1763442871850,0.4536,3026.9,3026.3,0.26799041]
[1763442871851,0.4923,3026.6,3026.3,0.26799041]
[1763442872164,0.4874,3026.4,3026.3,0.26799041]
[1763442872972,0.4674,3026.7,3026.3,0.26799041]
[1763442874254,0.289,3026.6,3026.3,0.26799041]
[1763442874455,0.289,3026.5,3026.2,1.15601388]
[1763442874857,0.4923,3026.3,3026.1,1.15601388]
[1763442875281,2.388,3026.2,3026.1,1.15601388]
[1763442876450,1.6503,3026.2,3026.1,1.15601388]
[1763442876685,0.4563,3026.2,3025.6,1.15601388]
[1763442876851,0.4563,3025.5,3025.3,1.15601388]
[1763442877059,1.206,3025.4,3025.2,1.15601388]
[1763442877276,0.595,3025.3,3025.1,1.15701388]
[1763442877475,1.0557,3025.3,3025.1,1.15701388]
[1763442877678,0.595,3025.3,3025.1,1.15701388]
[1763442878067,0.289,3025.3,3025.1,1.15701388]
[1763442878287,0.289,3025.3,3025.1,1.74172354]
[1763442878873,0.289,3025.3,3025.1,0.001]
[1763442879255,0.289,3025.3,3025.1,1.74172354]
[1763442879763,0.1935,3025.9,3025.2,0.1583]
[1763442879963,0.289,3025.8,3025.6,1.16114571]
[1763442880164,0.289,3025.8,3025.5,1.16114571]
[1763442880368,0.1935,3025.9,3025.7,1.16114571]
[1763442880573,0.289,3025.8,3025.6,1.74171857]
[1763442881395,0.917,3025.7,3025.5,1.74171857]
[1763442882493,0.4563,3025.7,3025.5,1.74171857]
[1763442883605,0.4607,3026.1,3025.5,1.74171857]
[1763442883803,0.1935,3025.9,3025.7,1.1610968]
[1763442883972,0.4563,3025.8,3025.7,1.1610968]
[1763442885009,0.917,3025.8,3025.7,1.1610968]
[1763442885208,2.111,3025.8,3025.7,1.1610968]
[1763442885510,3.305,3025.8,3025.7,1.1610968]
[1763442886312,2.111,3025.8,3025.5,1.1610968]
[1763442886478,0.306,3025.6,3025.5,1.1610968]
[1763442886800,0.7667,3025.6,3025.5,1.1620968]
[1763442887002,0.7667,3025.6,3025.5,0.001]
[1763442888108,0.7667,3025.6,3025.5,1.1620968]
[1763442888314,0.7667,3025.6,3025.5,0.001]
[1763442889779,1.0557,3025.6,3025.5,0.001]
[1763442890982,1.461204,3025.6,3025.5,0.001]
[1763442892217,1.09701411,3025.6,3025.5,0.001]
[1763442892407,1.0557,3025.6,3025.5,0.001]
[1763442893804,0.7667,3025.6,3025.5,0.001]
[1763442894025,1.0557,3025.6,3025.5,0.001]
[1763442894264,1.461204,3025.6,3025.5,0.001]
[1763442894896,1.98121062,3025.6,3025.5,0.001]
[1763442895339,3.17521062,3025.6,3025.5,0.001]
[1763442895501,1.98121062,3025.6,3025.5,0.001]
[1763442897648,0.405504,3025.5,3025.1,0.001]
[1763442897803,0.4548,3025.2,3025.1,0.001]
[1763442898023,1.2045,3025.2,3025.1,0.001]
[1763442899170,0.9155,3025.2,3025.1,0.001]
[1763442899466,1.2045,3025.2,3025.1,0.001]
[1763442900523,0.7438,3025.2,3025.1,0.001]
[1763442900727,1.2045,3025.2,3025.1,0.001]
[1763442900977,5.41705921,3025.2,3024.3,0.001]
[1763442901151,0.6498,3024.4,3024.3,0.001]
[1763442901335,0.9388,3024.4,3024.3,0.001]
[1763442901669,0.288,3024.4,3024.3,0.001]
[1763442901863,0.7443,3024.4,3024.3,0.001]
[1763442902071,1.205,3024.4,3024.3,0.001]
[1763442902273,0.1935,3025.9,3024.3,0.001]
[1763442902438,0.23481002,3025.9,3024.3,0.4713]
[1763442902639,0.4607,3025.5,3024.6,1.1610968]
[1763442902868,0.288,3025.4,3024.6,1.1610968]
[1763442903444,0.288,3025.3,3024.8,1.1610968]
[1763442903740,0.288,3025.2,3024.8,1.1610968]
[1763442903975,0.6498,3024.9,3024.6,1.1610968]
[1763442904276,0.6498,3024.9,3024.3,1.1620968]
[1763442904277,0.3113,3024.7,3024.3,1.1620968]
[1763442904439,0.288,3024.6,3024.5,1.1610968]
[1763442904624,3.49832329,3025.9,3024.5,0.9613]
[1763442904625,0.4607,3025.7,3024.5,0.9613]
[1763442904824,0.288,3025.6,3024.8,1.16163398]
[1763442905224,2.39,3025.5,3024.9,1.16163398]
[1763442905615,1.195,3025.4,3024.9,1.45196924]
[1763442905741,2.678,3025.4,3024.9,1.45196924]
[1763442906073,2.678,3025.4,3025.0,1.16163398]
[1763442906571,0.51994204,3025.3,3025.0,1.16163398]
[1763442907338,0.51994204,3025.3,3025.2,0.474]
[1763442907539,0.80794204,3025.3,3025.2,0.9666]
[1763442907747,0.80794204,3025.3,3025.2,1.5807272]
[1763442907942,0.288,3025.3,3025.2,0.6141272]
[1763442908168,0.288,3025.3,3025.1,1.74250682]
[1763442908776,0.1823,3025.9,3025.2,0.6012]
[1763442908942,0.1823,3025.9,3025.4,1.16167015]
[1763442908943,0.7703,3025.8,3025.4,1.16167015]
[1763442909141,0.04131275,3025.7,3025.3,1.16167015]
[1763442909458,0.4526,3025.2,3024.8,1.16167015]
[1763442909654,0.288,3025.1,3024.8,1.16167015]
[1763442909832,0.7703,3025.1,3024.8,1.16167015]
[1763442910163,0.6349,3024.9,3024.8,1.16167015]
[1763442911067,0.288,3025.1,3024.8,1.16167015]
[1763442911235,0.4526,3024.9,3024.8,1.16167015]
[1763442911428,0.80800496,3025.1,3024.8,1.16167015]
[1763442911658,0.288,3025.1,3024.8,1.16167015]
[1763442912065,0.4823,3025.7,3024.8,1.16167015]
[1763442912235,0.288,3025.6,3024.9,1.16167015]
[1763442912630,0.288,3025.6,3025.0,1.16167015]
[1763442913157,0.7703,3025.6,3025.0,1.16167015]
[1763442913558,0.4823,3025.5,3025.0,1.16167015]
[1763442914282,0.4526,3025.1,3025.0,1.16167015]
[1763442914485,0.4526,3025.1,3024.4,1.16167015]
[1763442914486,0.405504,3025.0,3024.4,1.16167015]
[1763442914654,0.6349,3024.5,3024.3,0.001]
[1763442915204,1.2229,3024.4,3024.3,0.001]
[1763442915356,3.1306,3024.4,3024.3,0.001]
[1763442915758,1.195,3024.4,3024.3,0.001]
[1763442915961,1.483,3024.4,3024.3,1.63667015]
[1763442916481,1.483,3024.4,3024.3,1.98730785]
[1763442916927,1.483,3024.4,3024.3,1.63667015]
[1763442917192,1.483,3024.4,3024.3,2.71010682]
[1763442917398,0.7406,3024.4,3024.3,0.001]
[1763442917582,0.288,3024.4,3024.3,0.001]
[1763442918326,0.288,3024.4,3024.3,0.475]
[1763442918623,0.288,3024.4,3024.3,1.16610182]
[1763442918830,1.25323051,3024.4,3024.3,0.001]
[1763442919035,0.405504,3024.3,3023.9,0.001]
[1763442919183,0.4525,3024.0,3023.9,0.001]
[1763442919378,0.7405,3024.0,3023.9,0.001]
[1763442919579,1.2119,3024.0,3023.9,0.001]
[1763442919881,0.288,3024.0,3023.9,0.001]
[1763442920789,0.7405,3024.0,3023.9,0.001]
[1763442920987,1.2119,3024.0,3023.9,0.001]
[1763442921187,0.288,3024.0,3023.9,0.001]
[1763442921404,0.7405,3024.0,3023.9,0.001]
[1763442921613,1.2119,3024.0,3023.9,0.001]
[1763442922624,0.7405,3024.0,3023.9,0.001]
[1763442922823,0.288,3024.0,3023.9,0.001]
[1763442923192,0.7405,3024.0,3023.9,0.001]
[1763442923393,1.2119,3024.0,3023.9,0.001]
[1763442925331,3.6019,3024.0,3023.9,0.001]
[1763442925517,1.2119,3024.0,3023.9,0.001]
[1763442926120,5.42577094,3024.0,3023.9,0.001]
[1763442926326,1.2119,3024.0,3023.9,0.001]
[1763442926900,0.9239,3024.0,3023.9,0.001]
[1763442927241,0.4525,3024.0,3023.9,0.001]
[1763442927544,0.7405,3024.0,3023.9,0.001]
[1763442928744,1.26066724,3024.0,3023.9,0.001]
[1763442929597,1.73206724,3024.0,3023.9,0.001]
[1763442930404,1.26066724,3024.0,3023.9,0.001]
[1763442930938,1.73206724,3024.0,3023.9,0.001]
[1763442933846,2.63905988,3024.0,3023.9,0.001]
[1763442934032,1.73206724,3024.0,3023.9,0.001]
[1763442934227,1.77340321,3024.0,3023.9,0.001]
[1763442934835,1.26066724,3024.0,3023.9,0.001]
[1763442935461,3.65066724,3024.0,3023.9,0.001]
[1763442935605,0.80816724,3024.0,3023.9,0.001]
[1763442935815,2.00316724,3024.0,3023.9,0.001]
[1763442938150,2.50176724,3024.0,3023.9,0.001]
[1763442938769,1.9816,3024.0,3023.9,0.001]
[1763442938928,0.479,3024.7,3023.9,0.001]
[1763442939121,0.80832777,3024.6,3023.9,0.001]
[1763442939318,0.288,3024.5,3023.9,0.001]
[1763442940460,0.767,3024.5,3023.9,0.001]
[1763442941026,0.767,3024.5,3023.9,0.87276996]
[1763442941560,0.288,3024.5,3023.9,0.87276996]
[1763442941718,0.288,3024.5,3024.0,0.87176996]
[1763442941922,0.479,3024.8,3024.1,1.48446996]
[1763442942122,0.1823,3025.1,3024.4,0.87176996]
[1763442942325,0.288,3025.0,3024.4,0.87176996]
[1763442942748,0.002,3024.5,3024.4,0.87176996]
[1763442942953,0.29,3024.5,3024.4,0.87176996]
[1763442943373,0.29,3024.5,3024.3,1.16510182]
[1763442944287,0.29,3024.5,3024.4,2.11650182]
[1763442944488,0.29,3024.5,3024.4,0.9514]
[1763442945270,2.68,3024.5,3024.4,0.47]
[1763442946067,3.20004616,3024.5,3024.4,2.21250682]
[1763442946271,3.20004616,3024.5,3024.4,0.47]
[1763442946491,3.20004616,3024.5,3024.4,0.9514]
[1763442946690,3.20004616,3024.5,3024.4,0.47]
[1763442947021,2.00504616,3024.5,3024.3,1.74250682]
[1763442947393,2.00504616,3024.5,3024.4,0.47]
[1763442947686,2.00504616,3024.5,3024.4,0.9514]
[1763442948185,0.81004616,3024.5,3024.4,0.47]
[1763442949156,0.81004616,3024.5,3024.3,1.74250682]
[1763442949666,0.81004616,3024.5,3024.4,0.47]
[1763442951396,0.81004616,3024.5,3024.3,1.74250682]
[1763442951603,1.28904616,3024.5,3024.4,1.16533629]
[1763442951777,0.81004616,3024.5,3024.3,1.16533629]
[1763442951963,0.81004616,3024.5,3024.3,0.87429323]
[1763442952163,0.9776,3024.4,3024.0,0.87429323]
[1763442952394,0.479,3024.4,3024.0,0.87429323]
[1763442952700,0.4986,3024.1,3024.0,0.87429323]
[1763442952877,0.7866,3024.1,3024.0,0.87429323]
[1763442953072,1.2656,3024.1,3024.0,0.87429323]
[1763442953967,0.288,3024.1,3023.9,0.001]
[1763442954295,0.288,3024.1,3024.0,0.87451962]
[1763442954526,0.288,3024.1,3024.0,1.34451962]
[1763442954664,0.288,3024.1,3024.0,0.47]
[1763442954863,0.52204616,3024.5,3024.0,1.63533629]
[1763442955099,0.288,3024.4,3024.2,0.87461852]
[1763442955396,0.288,3024.4,3024.0,1.63533629]
[1763442955397,0.288,3024.4,3024.3,0.87461852]
[1763442955599,0.288,3024.4,3024.3,0.47]
[1763442955803,0.288,3024.4,3024.3,1.16533629]
[1763442956010,0.7866,3024.4,3024.3,1.16533629]
[1763442956302,0.288,3024.4,3024.3,1.16533629]
[1763442957002,0.288,3024.4,3024.2,1.16533629]
[1763442957003,1.2656,3024.4,3024.2,1.16533629]
[1763442957168,0.288,3024.4,3024.3,0.87461536]
[1763442957573,0.7866,3024.4,3024.3,0.87461536]
[1763442957811,1.2656,3024.4,3024.2,0.87461536]
[1763442957971,0.479,3024.3,3024.2,0.87461536]
[1763442958175,0.9776,3024.3,3024.2,0.87461536]
[1763442958391,0.9776,3024.3,3024.1,1.16533629]
[1763442958606,0.479,3024.2,3024.1,1.16533629]
[1763442958812,0.4986,3024.2,3024.0,1.16533629]
[1763442959306,0.52012504,3024.2,3024.0,1.16533629]
[1763442960835,0.42462823,3024.2,3024.1,1.0827]
[1763442961040,0.002,3024.5,3024.1,1.0827]
[1763442961041,0.002,3024.5,3024.1,7.53238193]
[1763442961204,0.002,3024.5,3024.4,0.47]
[1763442961409,0.002,3024.9,3024.4,0.9514]
[1763442961730,0.002,3024.9,3024.8,0.47]